[Event "Late-Titled-Tuesday-Blitz-September-05-2023"]
[Site "Chess.com"]
[Date "2023.09.05"]
[Round "6"]
[White "jorquerino"]
[Black "copanchess"]
[Result "0-1"]
[WhiteElo "2335"]
[BlackElo "2181"]
[TimeControl "180+1"]
[EndTime "15:06:26 PDT"]
[Termination "copanchess won by checkmate"]

1. e4 {[%clk 0:02:55.9]} 1... e5 {[%clk 0:02:56.6]} 2. Nc3 {[%clk 0:02:55.8]}
2... Nf6 {[%clk 0:02:55.4]} 3. f4 {[%clk 0:02:55.4]} 3... d5 {[%clk 0:02:55.7]}
4. fxe5 {[%clk 0:02:55.6]} 4... Nxe4 {[%clk 0:02:55.2]} 5. d3 {[%clk 0:02:56.3]}
5... Nxc3 {[%clk 0:02:53.5]} 6. bxc3 {[%clk 0:02:57.2]} 6... Be7 {[%clk
0:02:51.1]} 7. Nf3 {[%clk 0:02:57.6]} 7... c5 {[%clk 0:02:43.5]} 8. Be2 {[%clk
0:02:56.6]} 8... O-O {[%clk 0:02:39.3]} 9. O-O {[%clk 0:02:56]} 9... f6 {[%clk
0:02:39.5]} 10. Bf4 {[%clk 0:02:41.3]} 10... fxe5 {[%clk 0:02:36.7]} 11. Nxe5
{[%clk 0:02:40.4]} 11... Bf6 {[%clk 0:02:23.9]} 12. d4 {[%clk 0:02:36.2]} 12...
Nd7 {[%clk 0:02:21.2]} 13. Ng4 {[%clk 0:02:15.1]} 13... cxd4 {[%clk 0:02:18]}
14. cxd4 {[%clk 0:02:11.5]} 14... Qb6 {[%clk 0:02:12.8]} 15. Nxf6+ {[%clk
0:02:09.8]} 15... Nxf6 {[%clk 0:02:12.8]} 16. Be5 {[%clk 0:02:04]} 16... Bd7
{[%clk 0:02:00.1]} 17. Rb1 {[%clk 0:01:58.4]} 17... Qc6 {[%clk 0:01:28.5]} 18.
Bb5 {[%clk 0:01:49.5]} 18... Qe6 {[%clk 0:01:27.7]} 19. Bxf6 {[%clk 0:01:35.4]}
19... Bxb5 {[%clk 0:00:56.8]} 20. Rxb5 {[%clk 0:01:31.5]} 20... Rxf6 {[%clk
0:00:56.5]} 21. Rxf6 {[%clk 0:01:22.2]} 21... Qxf6 {[%clk 0:00:56]} 22. Rxd5
{[%clk 0:00:54.9]} 22... Rf8 {[%clk 0:00:54.7]} 23. h3 {[%clk 0:00:52.9]} 23...
Qf2+ {[%clk 0:00:49]} 24. Kh1 {[%clk 0:00:49.1]} 24... h6 {[%clk 0:00:48.4]} 25.
Rd7 {[%clk 0:00:40.9]} 25... Re8 {[%clk 0:00:40.2]} 26. Qh5 {[%clk 0:00:07.3]}
26... Re1+ {[%clk 0:00:37.6]} 27. Kh2 {[%clk 0:00:06.9]} 27... Qf4+ {[%clk
0:00:34.2]} 28. g3 {[%clk 0:00:04.9]} 28... Qf2# {[%clk 0:00:33.8]} 0-1

[Event "Late-Titled-Tuesday-Blitz-September-05-2023"]
[Site "Chess.com"]
[Date "2023.09.05"]
[Round "6"]
[White "olakenn"]
[Black "Nick12772"]
[Result "1/2-1/2"]
[WhiteElo "1867"]
[BlackElo "2329"]
[TimeControl "180+1"]
[EndTime "15:06:28 PDT"]
[Termination "Game drawn by repetition"]

1. e4 {[%clk 0:02:52.4]} 1... e6 {[%clk 0:02:59.8]} 2. d4 {[%clk 0:02:52.2]}
2... d5 {[%clk 0:03:00.7]} 3. exd5 {[%clk 0:02:52.2]} 3... exd5 {[%clk
0:03:01.6]} 4. Nf3 {[%clk 0:02:51.9]} 4... Bd6 {[%clk 0:03:02.1]} 5. Bd3 {[%clk
0:02:52.3]} 5... Ne7 {[%clk 0:03:02.1]} 6. O-O {[%clk 0:02:52.8]} 6... O-O
{[%clk 0:03:02.7]} 7. Bg5 {[%clk 0:02:52.3]} 7... f6 {[%clk 0:03:02.4]} 8. Bh4
{[%clk 0:02:52.4]} 8... Bf5 {[%clk 0:03:03]} 9. Bg3 {[%clk 0:02:50.2]} 9... c6
{[%clk 0:03:02.7]} 10. Bxd6 {[%clk 0:02:49.8]} 10... Qxd6 {[%clk 0:03:03.6]} 11.
c3 {[%clk 0:02:47.9]} 11... Nd7 {[%clk 0:03:02.9]} 12. Na3 {[%clk 0:02:45.1]}
12... Bxd3 {[%clk 0:03:00.9]} 13. Qxd3 {[%clk 0:02:45]} 13... Ng6 {[%clk
0:03:01.6]} 14. Qd2 {[%clk 0:02:37.9]} 14... Rfe8 {[%clk 0:03:00.4]} 15. Rfe1
{[%clk 0:02:37.4]} 15... Qf4 {[%clk 0:02:54.7]} 16. Qxf4 {[%clk 0:02:34.1]}
16... Nxf4 {[%clk 0:02:55.6]} 17. Rxe8+ {[%clk 0:02:33.2]} 17... Rxe8 {[%clk
0:02:55.4]} 18. Re1 {[%clk 0:02:31]} 18... Rxe1+ {[%clk 0:02:24.3]} 19. Nxe1
{[%clk 0:02:30.6]} 19... Nb6 {[%clk 0:02:16]} 20. g3 {[%clk 0:02:26.4]} 20...
Ng6 {[%clk 0:02:01.2]} 21. Nd3 {[%clk 0:02:25.4]} 21... Nd7 {[%clk 0:02:00.1]}
22. Nc2 {[%clk 0:02:22.7]} 22... Kf7 {[%clk 0:01:59.9]} 23. Kg2 {[%clk 0:02:22]}
23... Ke6 {[%clk 0:01:58.3]} 24. f4 {[%clk 0:02:21.6]} 24... Kd6 {[%clk
0:01:57.2]} 25. b4 {[%clk 0:02:18.4]} 25... Ne7 {[%clk 0:01:51]} 26. Nc5 {[%clk
0:02:13.6]} 26... b6 {[%clk 0:01:39.5]} 27. Nxd7 {[%clk 0:02:11.9]} 27... Kxd7
{[%clk 0:01:40.4]} 28. Kf3 {[%clk 0:02:08.5]} 28... Nc8 {[%clk 0:01:39.3]} 29.
Ke2 {[%clk 0:02:04.7]} 29... Nd6 {[%clk 0:01:38.7]} 30. Kd3 {[%clk 0:01:59]}
30... Ne4 {[%clk 0:01:28.5]} 31. Ne3 {[%clk 0:01:46.4]} 31... b5 {[%clk
0:01:07.9]} 32. Nd1 {[%clk 0:01:31.1]} 32... Ke6 {[%clk 0:01:02]} 33. Ne3 {[%clk
0:01:27.8]} 33... h5 {[%clk 0:00:58.8]} 34. f5+ {[%clk 0:01:25]} 34... Kd7
{[%clk 0:00:54.2]} 35. Nd1 {[%clk 0:01:17.9]} 35... Nd6 {[%clk 0:00:52.7]} 36.
Ne3 {[%clk 0:01:14.8]} 36... Ke7 {[%clk 0:00:47.3]} 37. Ke2 {[%clk 0:01:10.9]}
37... Kf7 {[%clk 0:00:45.7]} 38. Kf3 {[%clk 0:01:07]} 38... Ne4 {[%clk
0:00:45.6]} 39. Nd1 {[%clk 0:01:06.4]} 39... g6 {[%clk 0:00:41.5]} 40. fxg6+
{[%clk 0:01:02.5]} 40... Kxg6 {[%clk 0:00:42.4]} 41. Kf4 {[%clk 0:00:58.3]}
41... Nd2 {[%clk 0:00:29.5]} 42. h3 {[%clk 0:00:53]} 42... Ne4 {[%clk
0:00:29.1]} 43. g4 {[%clk 0:00:51.7]} 43... hxg4 {[%clk 0:00:29.4]} 44. hxg4
{[%clk 0:00:51.8]} 44... Nd2 {[%clk 0:00:28.4]} 45. Ne3 {[%clk 0:00:50.5]} 45...
Ne4 {[%clk 0:00:28.4]} 46. Nd1 {[%clk 0:00:50.4]} 46... Nd2 {[%clk 0:00:27.4]}
47. Ne3 {[%clk 0:00:50.5]} 47... Ne4 {[%clk 0:00:27.2]} 48. Nd1 {[%clk
0:00:46.3]} 1/2-1/2

[Event "Late-Titled-Tuesday-Blitz-September-05-2023"]
[Site "Chess.com"]
[Date "2023.09.05"]
[Round "6"]
[White "GAO"]
[Black "Casper"]
[Result "0-1"]
[WhiteElo "2298"]
[BlackElo "2455"]
[TimeControl "180+1"]
[EndTime "15:06:31 PDT"]
[Termination "Casper won by checkmate"]

1. e4 {[%clk 0:02:54.2]} 1... c5 {[%clk 0:02:59.1]} 2. Nf3 {[%clk 0:02:52.6]}
2... d6 {[%clk 0:02:59.6]} 3. d4 {[%clk 0:02:48.3]} 3... Nf6 {[%clk 0:03:00]} 4.
dxc5 {[%clk 0:02:39.9]} 4... Nxe4 {[%clk 0:03:00]} 5. cxd6 {[%clk 0:02:40.2]}
5... Nxd6 {[%clk 0:03:00.9]} 6. Bd3 {[%clk 0:02:35.9]} 6... Bg4 {[%clk
0:02:59.2]} 7. Nbd2 {[%clk 0:02:31.3]} 7... Nc6 {[%clk 0:02:58.9]} 8. O-O {[%clk
0:02:28]} 8... g6 {[%clk 0:02:55]} 9. Qe2 {[%clk 0:02:27.3]} 9... Bg7 {[%clk
0:02:47.8]} 10. c3 {[%clk 0:02:24.3]} 10... O-O {[%clk 0:02:47.5]} 11. h3 {[%clk
0:02:23.8]} 11... Bxf3 {[%clk 0:02:47.5]} 12. Nxf3 {[%clk 0:02:24.7]} 12... e6
{[%clk 0:02:47]} 13. Bg5 {[%clk 0:02:24]} 13... Qa5 {[%clk 0:02:45.1]} 14. Rfd1
{[%clk 0:02:21.2]} 14... Nf5 {[%clk 0:02:25.5]} 15. g4 {[%clk 0:01:57.2]} 15...
Nfe7 {[%clk 0:02:20.9]} 16. Be4 {[%clk 0:01:54.6]} 16... f6 {[%clk 0:02:01.1]}
17. Be3 {[%clk 0:01:49.1]} 17... f5 {[%clk 0:01:59.8]} 18. Bc2 {[%clk
0:01:42.9]} 18... fxg4 {[%clk 0:01:43.5]} 19. hxg4 {[%clk 0:01:41.7]} 19... Ne5
{[%clk 0:01:42.8]} 20. Nxe5 {[%clk 0:01:37.6]} 20... Bxe5 {[%clk 0:01:30]} 21.
Bb3 {[%clk 0:01:36.1]} 21... Nd5 {[%clk 0:01:27.6]} 22. Bd4 {[%clk 0:01:29.9]}
22... Bxd4 {[%clk 0:01:18]} 23. Qxe6+ {[%clk 0:01:20.5]} 23... Kh8 {[%clk
0:01:13.3]} 24. Rxd4 {[%clk 0:01:17.2]} 24... Nf4 {[%clk 0:01:09.9]} 25. Qe3
{[%clk 0:00:59.2]} 25... Qg5 {[%clk 0:00:53.6]} 26. Qf3 {[%clk 0:00:36.3]} 26...
Rae8 {[%clk 0:00:45.4]} 27. Rad1 {[%clk 0:00:20.4]} 27... Ne2+ {[%clk
0:00:44.1]} 28. Kg2 {[%clk 0:00:17.8]} 28... Rxf3 {[%clk 0:00:42.2]} 29. Kxf3
{[%clk 0:00:16.8]} 29... Nxd4+ {[%clk 0:00:42.1]} 30. Rxd4 {[%clk 0:00:17.7]}
30... Rf8+ {[%clk 0:00:40]} 31. Kg2 {[%clk 0:00:17.5]} 31... Qh4 {[%clk
0:00:40]} 32. f3 {[%clk 0:00:17.2]} 32... Re8 {[%clk 0:00:39.4]} 33. Rd2 {[%clk
0:00:16.9]} 33... Re1 {[%clk 0:00:39.1]} 34. f4 {[%clk 0:00:14.7]} 34... Qh1+
{[%clk 0:00:38.6]} 35. Kf2 {[%clk 0:00:14.9]} 35... Qg1+ {[%clk 0:00:38.4]} 36.
Kf3 {[%clk 0:00:15.1]} 36... Re3# {[%clk 0:00:35.1]} 0-1

[Event "Late-Titled-Tuesday-Blitz-September-05-2023"]
[Site "Chess.com"]
[Date "2023.09.05"]
[Round "6"]
[White "DawidCzerw"]
[Black "laskakid"]
[Result "1-0"]
[WhiteElo "2498"]
[BlackElo "2246"]
[TimeControl "180+1"]
[EndTime "15:06:32 PDT"]
[Termination "DawidCzerw won by resignation"]

1. e4 {[%clk 0:03:00.9]} 1... e5 {[%clk 0:02:59.4]} 2. Nf3 {[%clk 0:03:01.5]}
2... Nc6 {[%clk 0:02:59]} 3. Bb5 {[%clk 0:03:02]} 3... a6 {[%clk 0:02:58.9]} 4.
Ba4 {[%clk 0:03:02.7]} 4... Nf6 {[%clk 0:02:58.6]} 5. d4 {[%clk 0:03:01.6]} 5...
exd4 {[%clk 0:02:50.9]} 6. e5 {[%clk 0:03:02.1]} 6... Ne4 {[%clk 0:02:50.6]} 7.
O-O {[%clk 0:03:02.5]} 7... Nc5 {[%clk 0:02:41.4]} 8. Bb3 {[%clk 0:02:57.5]}
8... Be7 {[%clk 0:02:38.2]} 9. Nxd4 {[%clk 0:02:54]} 9... Nxe5 {[%clk
0:02:23.6]} 10. Nf5 {[%clk 0:02:46]} 10... Nxb3 {[%clk 0:02:07.4]} 11. Nxg7+
{[%clk 0:02:37.7]} 11... Kf8 {[%clk 0:02:07.1]} 12. Bh6 {[%clk 0:02:37.7]} 12...
Kg8 {[%clk 0:01:49.5]} 13. axb3 {[%clk 0:02:31.9]} 13... Bg5 {[%clk 0:01:39.1]}
14. Nf5 {[%clk 0:02:10.5]} 14... d5 {[%clk 0:01:31.9]} 15. Bxg5 {[%clk
0:02:04.5]} 15... Qxg5 {[%clk 0:01:31.5]} 16. Ne3 {[%clk 0:01:56.8]} 16... d4
{[%clk 0:01:21.7]} 17. f4 {[%clk 0:01:43.6]} 17... Qg7 {[%clk 0:01:14.7]} 18.
fxe5 {[%clk 0:01:32.7]} 18... dxe3 {[%clk 0:01:12.2]} 19. Qd8+ {[%clk
0:01:17.7]} 19... Qf8 {[%clk 0:01:11.1]} 20. Qg5+ {[%clk 0:01:12.1]} 20... Qg7
{[%clk 0:01:11.2]} 21. Qxe3 {[%clk 0:01:13]} 21... h5 {[%clk 0:00:58.4]} 22. Nc3
{[%clk 0:01:06.4]} 22... h4 {[%clk 0:00:55.4]} 23. Nd5 {[%clk 0:01:00.9]} 23...
Rh6 {[%clk 0:00:51.8]} 24. Nxc7 {[%clk 0:00:58.1]} 24... h3 {[%clk 0:00:46.7]}
25. g3 {[%clk 0:00:52.9]} 25... Rb8 {[%clk 0:00:42.7]} 26. Qa7 {[%clk
0:00:42.1]} 26... Qxe5 {[%clk 0:00:41.9]} 27. Qxb8 {[%clk 0:00:33.2]} 27... Qe3+
{[%clk 0:00:36.1]} 28. Rf2 {[%clk 0:00:32.8]} 28... Rf6 {[%clk 0:00:32.6]} 29.
Qxc8+ {[%clk 0:00:32]} 29... Kh7 {[%clk 0:00:28.6]} 30. Qxh3+ {[%clk 0:00:29.9]}
30... Kg7 {[%clk 0:00:25.7]} 31. Rf1 {[%clk 0:00:21.9]} 31... Qe5 {[%clk
0:00:22.2]} 32. Rxf6 {[%clk 0:00:16.9]} 1-0

[Event "Late-Titled-Tuesday-Blitz-September-05-2023"]
[Site "Chess.com"]
[Date "2023.09.05"]
[Round "6"]
[White "martinbitel"]
[Black "canary2016"]
[Result "0-1"]
[WhiteElo "2233"]
[BlackElo "2053"]
[TimeControl "180+1"]
[EndTime "15:06:33 PDT"]
[Termination "canary2016 won on time"]

1. d4 {[%clk 0:03:00.9]} 1... Nf6 {[%clk 0:02:59.6]} 2. c4 {[%clk 0:03:01.3]}
2... e6 {[%clk 0:02:59.2]} 3. Nf3 {[%clk 0:03:00.1]} 3... Bb4+ {[%clk
0:02:56.3]} 4. Bd2 {[%clk 0:02:58.9]} 4... Bxd2+ {[%clk 0:02:55]} 5. Nbxd2
{[%clk 0:02:47.1]} 5... O-O {[%clk 0:02:51.4]} 6. e3 {[%clk 0:02:44.5]} 6... d5
{[%clk 0:02:48.7]} 7. Bd3 {[%clk 0:02:44.3]} 7... b6 {[%clk 0:02:47.3]} 8. O-O
{[%clk 0:02:42.3]} 8... Bb7 {[%clk 0:02:47.6]} 9. Qc2 {[%clk 0:02:41]} 9... c5
{[%clk 0:02:47.3]} 10. Rfd1 {[%clk 0:02:09.9]} 10... Nbd7 {[%clk 0:02:46.5]} 11.
b3 {[%clk 0:01:48.6]} 11... Rc8 {[%clk 0:02:42.4]} 12. Qb2 {[%clk 0:01:43.8]}
12... Qe7 {[%clk 0:02:31.8]} 13. Rac1 {[%clk 0:01:41.5]} 13... Rfd8 {[%clk
0:02:20.2]} 14. Bb1 {[%clk 0:01:32]} 14... dxc4 {[%clk 0:01:58.6]} 15. bxc4
{[%clk 0:01:18.9]} 15... cxd4 {[%clk 0:01:46.6]} 16. exd4 {[%clk 0:01:19.8]}
16... Nf8 {[%clk 0:01:37]} 17. Qb3 {[%clk 0:01:10.1]} 17... Ng6 {[%clk
0:01:14.2]} 18. Nf1 {[%clk 0:01:07.3]} 18... Nf4 {[%clk 0:01:10]} 19. Qe3 {[%clk
0:00:50.8]} 19... Qc7 {[%clk 0:01:03.5]} 20. Ne5 {[%clk 0:00:08.2]} 20... Ng6
{[%clk 0:00:51]} 21. Nxg6 {[%clk 0:00:06.3]} 21... hxg6 {[%clk 0:00:50.8]} 22.
Qb3 {[%clk 0:00:05.8]} 22... Qc6 {[%clk 0:00:49.5]} 23. f3 {[%clk 0:00:03.5]}
23... Nh5 {[%clk 0:00:41.4]} 24. Be4 {[%clk 0:00:02.8]} 24... Qc7 {[%clk
0:00:41.2]} 25. Bxb7 {[%clk 0:00:02.8]} 25... Qxb7 {[%clk 0:00:40.9]} 26. Ne3
{[%clk 0:00:03.3]} 26... Nf4 {[%clk 0:00:40.2]} 27. d5 {[%clk 0:00:03.6]} 27...
Ne2+ {[%clk 0:00:39.3]} 28. Kf2 {[%clk 0:00:03.4]} 28... Nxc1 {[%clk 0:00:39.4]}
29. Rxc1 {[%clk 0:00:03.8]} 29... exd5 {[%clk 0:00:39.6]} 30. Qd1 {[%clk
0:00:01.9]} 30... dxc4 {[%clk 0:00:36.5]} 31. Qe2 {[%clk 0:00:02.1]} 31... Qa6
{[%clk 0:00:31.4]} 0-1

[Event "Late-Titled-Tuesday-Blitz-September-05-2023"]
[Site "Chess.com"]
[Date "2023.09.05"]
[Round "6"]
[White "kleinebeer98"]
[Black "K_A_S_T_O_R"]
[Result "1/2-1/2"]
[WhiteElo "2862"]
[BlackElo "2957"]
[TimeControl "180+1"]
[EndTime "15:06:38 PDT"]
[Termination "Game drawn by repetition"]

1. e4 {[%clk 0:03:00.9]} 1... c5 {[%clk 0:02:59.7]} 2. Nf3 {[%clk 0:03:01]} 2...
d6 {[%clk 0:03:00]} 3. d4 {[%clk 0:03:01.6]} 3... cxd4 {[%clk 0:03:00.3]} 4.
Nxd4 {[%clk 0:03:02.5]} 4... Nf6 {[%clk 0:03:00.5]} 5. Nc3 {[%clk 0:03:03.3]}
5... a6 {[%clk 0:03:01.1]} 6. a3 {[%clk 0:03:03.9]} 6... Nc6 {[%clk 0:02:53.5]}
7. Rg1 {[%clk 0:02:53.9]} 7... g6 {[%clk 0:02:43.2]} 8. g4 {[%clk 0:02:47.7]}
8... Bg7 {[%clk 0:02:35.9]} 9. Be3 {[%clk 0:02:47.5]} 9... O-O {[%clk
0:01:53.5]} 10. Nb3 {[%clk 0:02:28.2]} 10... b5 {[%clk 0:01:48.9]} 11. g5 {[%clk
0:02:27.5]} 11... Nd7 {[%clk 0:01:48.6]} 12. h4 {[%clk 0:02:25.2]} 12... Bb7
{[%clk 0:01:48.5]} 13. h5 {[%clk 0:02:23.7]} 13... Rc8 {[%clk 0:01:48.4]} 14.
Qg4 {[%clk 0:02:08.3]} 14... Nce5 {[%clk 0:01:42.3]} 15. Qh3 {[%clk 0:02:08.8]}
15... Rxc3 {[%clk 0:01:33.4]} 16. bxc3 {[%clk 0:02:08.5]} 16... Bxe4 {[%clk
0:01:33.9]} 17. Be2 {[%clk 0:01:59.6]} 17... Qc7 {[%clk 0:01:29.2]} 18. Bd4
{[%clk 0:01:53.8]} 18... Bxc2 {[%clk 0:01:27.8]} 19. Nd2 {[%clk 0:01:50.2]}
19... Bf5 {[%clk 0:01:26]} 20. Qh4 {[%clk 0:01:50.4]} 20... gxh5 {[%clk
0:01:14.5]} 21. Qxh5 {[%clk 0:01:45.6]} 21... Nc5 {[%clk 0:00:55.8]} 22. Rh1
{[%clk 0:01:40.4]} 22... Bg6 {[%clk 0:00:50.9]} 23. Qh3 {[%clk 0:01:40.6]} 23...
Ned3+ {[%clk 0:00:48.2]} 24. Kf1 {[%clk 0:01:38.8]} 24... e5 {[%clk 0:00:48.1]}
25. Bxc5 {[%clk 0:01:28.2]} 25... Nf4 {[%clk 0:00:41.6]} 26. Qe3 {[%clk
0:01:20.6]} 26... dxc5 {[%clk 0:00:39.8]} 27. Bf3 {[%clk 0:01:17.3]} 27... Rd8
{[%clk 0:00:34]} 28. Be4 {[%clk 0:01:12.8]} 28... Qd6 {[%clk 0:00:19.9]} 29.
Bxg6 {[%clk 0:01:02.4]} 29... Qxg6 {[%clk 0:00:19.8]} 30. Nf3 {[%clk 0:01:03.1]}
30... Rd3 {[%clk 0:00:19.6]} 31. Nxe5 {[%clk 0:01:03.9]} 31... Bxe5 {[%clk
0:00:17.1]} 32. Qxe5 {[%clk 0:01:04.8]} 32... Qc6 {[%clk 0:00:17.1]} 33. Qb8+
{[%clk 0:00:57.5]} 33... Kg7 {[%clk 0:00:17.4]} 34. Qe5+ {[%clk 0:00:58.4]}
34... Kg8 {[%clk 0:00:17.4]} 35. Rg1 {[%clk 0:00:44.3]} 35... Qf3 {[%clk
0:00:17]} 36. Qe8+ {[%clk 0:00:38.2]} 36... Kg7 {[%clk 0:00:17.2]} 37. Qe5+
{[%clk 0:00:39]} 37... Kg8 {[%clk 0:00:17.8]} 38. Qe8+ {[%clk 0:00:25.8]} 38...
Kg7 {[%clk 0:00:17.8]} 39. Qe5+ {[%clk 0:00:26.6]} 39... Kg8 {[%clk 0:00:18.5]}
1/2-1/2

[Event "Late-Titled-Tuesday-Blitz-September-05-2023"]
[Site "Chess.com"]
[Date "2023.09.05"]
[Round "6"]
[White "PapaieDudu"]
[Black "boguszp"]
[Result "1-0"]
[WhiteElo "2298"]
[BlackElo "2065"]
[TimeControl "180+1"]
[EndTime "15:06:39 PDT"]
[Termination "PapaieDudu won by resignation"]

1. e4 {[%clk 0:03:00.9]} 1... e6 {[%clk 0:02:56.5]} 2. Nf3 {[%clk 0:02:59.6]}
2... d5 {[%clk 0:02:55.5]} 3. e5 {[%clk 0:02:59.8]} 3... c5 {[%clk 0:02:54]} 4.
b4 {[%clk 0:02:59.7]} 4... cxb4 {[%clk 0:02:52.5]} 5. a3 {[%clk 0:02:59.3]} 5...
bxa3 {[%clk 0:02:52.1]} 6. d4 {[%clk 0:02:59.1]} 6... Nc6 {[%clk 0:02:48]} 7. c3
{[%clk 0:02:58.8]} 7... a6 {[%clk 0:02:34.3]} 8. Nxa3 {[%clk 0:02:57.3]} 8...
Bd7 {[%clk 0:02:31.4]} 9. Bd3 {[%clk 0:02:56.5]} 9... Na5 {[%clk 0:02:23]} 10.
O-O {[%clk 0:02:46.4]} 10... Rc8 {[%clk 0:02:22.1]} 11. Qe2 {[%clk 0:02:39.6]}
11... Rxc3 {[%clk 0:02:16.1]} 12. Bd2 {[%clk 0:02:38.2]} 12... Rxa3 {[%clk
0:02:13.9]} 13. Rxa3 {[%clk 0:02:38.2]} 13... Bxa3 {[%clk 0:02:13.3]} 14. Ra1
{[%clk 0:02:38.9]} 14... Be7 {[%clk 0:01:17]} 15. Bxa5 {[%clk 0:02:33.5]} 15...
Qc8 {[%clk 0:01:14.4]} 16. Bd2 {[%clk 0:02:30.7]} 16... Nh6 {[%clk 0:01:11.5]}
17. h4 {[%clk 0:02:23.1]} 17... Nf5 {[%clk 0:01:09.3]} 18. Ng5 {[%clk
0:02:06.2]} 18... h6 {[%clk 0:01:06.4]} 19. Nf3 {[%clk 0:01:27.8]} 19... Nxh4
{[%clk 0:01:04]} 20. Nxh4 {[%clk 0:01:28.4]} 20... Bxh4 {[%clk 0:01:03.8]} 21.
Qg4 {[%clk 0:01:27.7]} 21... Bg5 {[%clk 0:00:51.3]} 22. f4 {[%clk 0:01:24.2]}
22... f5 {[%clk 0:00:39.7]} 23. Qh5+ {[%clk 0:01:11.1]} 23... Ke7 {[%clk
0:00:29.3]} 24. Rc1 {[%clk 0:00:45.7]} 24... Qe8 {[%clk 0:00:20.2]} 25. Bb4+
{[%clk 0:00:42.3]} 25... Kd8 {[%clk 0:00:18.5]} 26. Ba5+ {[%clk 0:00:38.6]}
26... Ke7 {[%clk 0:00:16.4]} 27. Bb4+ {[%clk 0:00:23.3]} 27... Kd8 {[%clk
0:00:15.2]} 28. Qf3 {[%clk 0:00:23.3]} 28... Be7 {[%clk 0:00:13.5]} 29. Ba5+
{[%clk 0:00:23.3]} 1-0

[Event "Late-Titled-Tuesday-Blitz-September-05-2023"]
[Site "Chess.com"]
[Date "2023.09.05"]
[Round "6"]
[White "Athanasios2"]
[Black "only_strong_moves"]
[Result "1-0"]
[WhiteElo "2711"]
[BlackElo "2530"]
[TimeControl "180+1"]
[EndTime "15:06:40 PDT"]
[Termination "Athanasios2 won on time"]

1. Nf3 {[%clk 0:03:00.9]} 1... Nf6 {[%clk 0:03:00.1]} 2. c4 {[%clk 0:02:57.8]}
2... e6 {[%clk 0:03:00.3]} 3. e3 {[%clk 0:02:55.9]} 3... d5 {[%clk 0:03:00.8]}
4. Nc3 {[%clk 0:02:56.1]} 4... c5 {[%clk 0:03:01.1]} 5. cxd5 {[%clk 0:02:52.9]}
5... exd5 {[%clk 0:03:00.6]} 6. d4 {[%clk 0:02:53.5]} 6... Nc6 {[%clk
0:02:56.6]} 7. Be2 {[%clk 0:02:47.4]} 7... c4 {[%clk 0:02:53.9]} 8. O-O {[%clk
0:02:45.1]} 8... Bd6 {[%clk 0:02:54.5]} 9. b3 {[%clk 0:02:43.5]} 9... cxb3
{[%clk 0:02:54.5]} 10. Qxb3 {[%clk 0:02:44.4]} 10... O-O {[%clk 0:02:54.1]} 11.
h3 {[%clk 0:02:41.9]} 11... a6 {[%clk 0:02:50.3]} 12. a4 {[%clk 0:02:37.7]}
12... Bf5 {[%clk 0:02:45.8]} 13. Ba3 {[%clk 0:02:36.3]} 13... Na5 {[%clk
0:02:44.8]} 14. Qa2 {[%clk 0:02:36.2]} 14... Rc8 {[%clk 0:02:41.4]} 15. Rac1
{[%clk 0:02:29.5]} 15... h6 {[%clk 0:02:20.8]} 16. Ne5 {[%clk 0:02:25.2]} 16...
Re8 {[%clk 0:02:04.8]} 17. Rfd1 {[%clk 0:01:58.5]} 17... Bxe5 {[%clk 0:01:55.6]}
18. dxe5 {[%clk 0:01:59.4]} 18... Rxe5 {[%clk 0:01:56.5]} 19. Bb2 {[%clk
0:01:54.6]} 19... Re8 {[%clk 0:01:41.3]} 20. Nxd5 {[%clk 0:01:50.3]} 20... Be6
{[%clk 0:01:12.1]} 21. Rxc8 {[%clk 0:01:40.9]} 21... Qxc8 {[%clk 0:01:09.3]} 22.
Nxf6+ {[%clk 0:01:37.4]} 22... gxf6 {[%clk 0:01:08.2]} 23. Qa3 {[%clk
0:01:19.8]} 23... Qc2 {[%clk 0:01:02]} 24. Re1 {[%clk 0:01:04.5]} 24... Bc4
{[%clk 0:00:21.8]} 25. Bf3 {[%clk 0:00:57.7]} 25... Nb3 {[%clk 0:00:12.3]} 26.
Bxf6 {[%clk 0:00:46.8]} 26... Nd2 {[%clk 0:00:10.2]} 27. Bxb7 {[%clk 0:00:41.2]}
27... Rb8 {[%clk 0:00:06]} 28. Qe7 {[%clk 0:00:33.3]} 28... Qb3 {[%clk
0:00:03.3]} 29. Bc6 {[%clk 0:00:29.1]} 1-0

[Event "Late-Titled-Tuesday-Blitz-September-05-2023"]
[Site "Chess.com"]
[Date "2023.09.05"]
[Round "6"]
[White "Lennis93"]
[Black "IMRosen"]
[Result "0-1"]
[WhiteElo "2818"]
[BlackElo "2619"]
[TimeControl "180+1"]
[EndTime "15:06:42 PDT"]
[Termination "IMRosen won by checkmate"]

1. g3 {[%clk 0:03:00.9]} 1... e6 {[%clk 0:02:59.5]} 2. Bg2 {[%clk 0:03:01.3]}
2... Ne7 {[%clk 0:03:00.1]} 3. Nf3 {[%clk 0:03:01.6]} 3... d6 {[%clk 0:03:00.6]}
4. O-O {[%clk 0:03:02]} 4... Nd7 {[%clk 0:03:01.3]} 5. e4 {[%clk 0:03:02.3]}
5... Ng6 {[%clk 0:03:01.7]} 6. d4 {[%clk 0:03:02.6]} 6... Nb6 {[%clk 0:03:02.2]}
7. a4 {[%clk 0:03:02.2]} 7... a5 {[%clk 0:03:00.5]} 8. b3 {[%clk 0:03:02.6]}
8... Bd7 {[%clk 0:03:00.8]} 9. c4 {[%clk 0:03:02.9]} 9... Be7 {[%clk 0:03:00.8]}
10. Nc3 {[%clk 0:03:02.1]} 10... O-O {[%clk 0:02:50.7]} 11. Be3 {[%clk
0:03:02.1]} 11... Nc8 {[%clk 0:02:46.7]} 12. h4 {[%clk 0:03:01.6]} 12... e5
{[%clk 0:02:35.1]} 13. h5 {[%clk 0:03:00.8]} 13... exd4 {[%clk 0:02:35.2]} 14.
Bxd4 {[%clk 0:02:48.9]} 14... Ne5 {[%clk 0:02:35.6]} 15. Nxe5 {[%clk 0:02:45.1]}
15... dxe5 {[%clk 0:02:34.9]} 16. Bxe5 {[%clk 0:02:45.3]} 16... f6 {[%clk
0:01:59.8]} 17. Bf4 {[%clk 0:02:42.7]} 17... c6 {[%clk 0:01:54.3]} 18. Qf3
{[%clk 0:02:26.5]} 18... Qe8 {[%clk 0:01:52.2]} 19. Rad1 {[%clk 0:02:24.9]}
19... Bb4 {[%clk 0:01:47.6]} 20. Ne2 {[%clk 0:02:15.4]} 20... Be6 {[%clk
0:01:45.3]} 21. Nd4 {[%clk 0:02:14.1]} 21... Bf7 {[%clk 0:01:45.4]} 22. g4
{[%clk 0:02:07.2]} 22... Nb6 {[%clk 0:01:34.8]} 23. Nf5 {[%clk 0:02:06.5]} 23...
Nd7 {[%clk 0:01:29.1]} 24. Bd6 {[%clk 0:01:50.8]} 24... Ne5 {[%clk 0:01:21.9]}
25. Qg3 {[%clk 0:01:49.8]} 25... Bxd6 {[%clk 0:01:09]} 26. Rxd6 {[%clk
0:01:43.5]} 26... Be6 {[%clk 0:01:04.5]} 27. f4 {[%clk 0:01:38.2]} 27... Nf7
{[%clk 0:01:02.7]} 28. Rd3 {[%clk 0:01:32.1]} 28... Bxf5 {[%clk 0:00:57.2]} 29.
gxf5 {[%clk 0:01:32.1]} 29... Qe7 {[%clk 0:00:53]} 30. Rfd1 {[%clk 0:01:31.1]}
30... Rae8 {[%clk 0:00:50.2]} 31. Rd7 {[%clk 0:01:27.4]} 31... Qc5+ {[%clk
0:00:50.5]} 32. Kh2 {[%clk 0:01:26.8]} 32... Re7 {[%clk 0:00:50.8]} 33. e5
{[%clk 0:01:11.5]} 33... Nh6 {[%clk 0:00:36.3]} 34. Bh3 {[%clk 0:01:00.8]} 34...
fxe5 {[%clk 0:00:30.8]} 35. Rxe7 {[%clk 0:00:58.6]} 35... Qxe7 {[%clk
0:00:30.7]} 36. fxe5 {[%clk 0:00:58.4]} 36... Nxf5 {[%clk 0:00:30.7]} 37. Qg4
{[%clk 0:00:38.1]} 37... Qxe5+ {[%clk 0:00:26.5]} 38. Kh1 {[%clk 0:00:37.3]}
38... Ng3+ {[%clk 0:00:21.6]} 39. Kg2 {[%clk 0:00:36.7]} 39... Qb2+ {[%clk
0:00:18.6]} 40. Kxg3 {[%clk 0:00:29.1]} 40... Qf2# {[%clk 0:00:18.5]} 0-1